bitfinex-derivatives/quotes_SOLF0:USTF0_20250428
["timestamp","ask_amount","ask_price","bid_price","bid_amount"]
[1745814598866,24.06,149.57,149.54,6.685]
[1745814600163,30.7438,149.57,149.53,11.24835843]
[1745814600465,28.62295843,149.57,149.52,4.56295843]
[1745814600768,35.30685843,149.57,149.53,11.24805843]
[1745814600968,24.06,149.57,149.53,4.56295843]
[1745814601470,4.56295843,149.59,149.55,11.24745843]
[1745814601768,4.56295843,149.57,149.54,4.56295843]
[1745814601970,4.56295843,149.57,149.53,4.56295843]
[1745814602164,6.6833,149.58,149.54,4.56295843]
[1745814602367,11.24625843,149.58,149.54,4.56295843]
[1745814602561,11.24675843,149.57,149.53,4.56295843]
[1745814602766,11.24675843,149.57,149.5,4.0755]
[1745814603067,4.56295843,149.58,149.54,11.24755843]
[1745814604469,11.24615843,149.58,149.54,11.24755843]
[1745814604668,4.56295843,149.58,149.54,4.56295843]
[1745814604870,4.56295843,149.58,149.53,4.56295843]
[1745814605069,11.24625843,149.58,149.54,11.24785843]
[1745814606369,6.6838,149.57,149.54,4.56295843]
[1745814606572,4.56295843,149.57,149.52,4.56295843]
[1745814607572,4.56295843,149.56,149.52,4.56295843]
[1745814607964,24.7,149.6,149.52,4.56295843]
[1745814608168,4.56295843,149.57,149.53,4.56295843]
[1745814609169,4.56295843,149.57,149.52,11.24875843]
[1745814609572,6.6841,149.56,149.52,11.24875843]
[1745814610176,11.24675843,149.57,149.52,11.24875843]
[1745814610371,11.24675843,149.57,149.53,4.56295843]
[1745814610875,4.56295843,149.54,149.49,4.56295843]
[1745814611176,4.56295843,149.54,149.47,26.7502]
[1745814611177,11.24735843,149.56,149.52,4.56295843]
[1745814611373,6.6844,149.56,149.52,4.56295843]
[1745814611675,4.56295843,149.57,149.52,4.56295843]
[1745814611975,11.24745843,149.56,149.52,4.56295843]
[1745814612166,11.24745843,149.56,149.51,4.56295843]
[1745814612671,6.6846,149.55,149.51,4.56295843]
[1745814613974,4.56295843,149.55,149.5,4.56295843]
[1745814614177,4.56295843,149.54,149.5,4.56295843]
[1745814615176,11.24785843,149.55,149.5,4.56295843]
[1745814615473,6.6851,149.54,149.47,26.7502]
[1745814615676,6.6851,149.54,149.5,4.56295843]
[1745814616077,6.6851,149.54,149.5,11.24935843]
[1745814616277,11.24755843,149.55,149.5,4.56295843]
[1745814616675,11.24755843,149.55,149.51,6.6863]
[1745814616874,11.24755843,149.55,149.5,4.56295843]
[1745814617176,4.56295843,149.51,149.47,2.0502]
[1745814617378,4.56295843,149.5,149.46,4.56295843]
[1745814617981,4.56295843,149.49,149.45,8.48215843]
[1745814618382,4.56295843,149.48,149.44,37.06717131]
[1745814619478,4.56295843,149.48,149.45,4.56295843]
[1745814620182,4.56295843,149.48,149.45,11.25185843]
[1745814620586,24.7,149.5,149.46,4.56295843]
[1745814620775,4.56295843,149.53,149.49,4.56295843]
[1745814621077,3.9874,149.56,149.44,32.50421288]
[1745814621078,31.15415843,149.56,149.52,4.56295843]
[1745814621281,37.83835843,149.56,149.51,11.24895843]
[1745814621882,4.56295843,149.55,149.51,11.24895843]
[1745814623084,4.56295843,149.55,149.5,11.24955843]
[1745814623275,4.56295843,149.54,149.5,11.24955843]
[1745814623480,4.56295843,149.54,149.5,4.56295843]
[1745814623782,4.56295843,149.54,149.51,6.6863]
[1745814625385,4.56295843,149.54,149.52,6.6858]
[1745814625688,33.2754,149.56,149.52,4.56295843]
[1745814625689,29.26295843,149.56,149.52,4.56295843]
[1745814626086,29.26295843,149.56,149.53,6.6851]
[1745814627686,29.26295843,149.56,149.53,6.6854]
[1745814627986,29.26295843,149.56,149.52,4.56295843]
[1745814628187,4.56295843,149.55,149.51,4.56295843]
[1745814628885,4.56295843,149.55,149.52,6.6856]
[1745814629382,11.24755843,149.55,149.51,11.24915843]
[1745814629577,4.56295843,149.54,149.51,6.6862]
[1745814630386,6.6846,149.55,149.51,6.6862]
[1745814630387,4.56295843,149.55,149.52,6.6858]
[1745814631285,4.56295843,149.55,149.51,11.24915843]
[1745814631488,11.24765843,149.55,149.51,11.24915843]
[1745814631687,4.56295843,149.54,149.5,4.56295843]
[1745814631988,4.56295843,149.51,149.45,35.27765843]
[1745814632287,4.56295843,149.5,149.45,35.27765843]
[1745814632487,4.56295843,149.5,149.47,6.6878]
[1745814632684,4.56295843,149.5,149.45,35.27765843]
[1745814632885,4.56295843,149.49,149.45,35.27765843]
[1745814633086,4.56295843,149.49,149.46,6.6883]
[1745814633588,4.56295843,149.48,149.45,6.6889]
[1745814633979,4.56295843,149.47,149.44,7.80421288]
[1745814634190,4.56295843,149.47,149.44,6.6892]
[1745814634488,4.56295843,149.45,149.42,24.72]
[1745814634687,4.56295843,149.45,149.41,4.56295843]
[1745814634986,4.56295843,149.46,149.41,4.56295843]
[1745814635383,4.56295843,149.46,149.43,6.6896]
[1745814635586,4.56295843,149.47,149.43,4.56295843]
[1745814635786,4.56295843,149.46,149.42,4.56295843]
[1745814636089,4.56295843,149.46,149.43,6.6895]
[1745814636581,4.56295843,149.46,149.44,6.6891]
[1745814637087,4.56295843,149.46,149.43,6.6898]
[1745814637282,4.56295843,149.46,149.41,4.56295843]
[1745814637687,4.56295843,149.46,149.43,6.6898]
[1745814639286,4.56295843,149.45,149.43,6.6898]
[1745814639690,4.56295843,149.45,149.44,6.6895]
[1745814639889,4.56295843,149.46,149.44,6.6895]
[1745814640692,4.56295843,149.46,149.43,6.6897]
[1745814641092,4.56295843,149.45,149.43,6.6897]
[1745814641298,4.56295843,149.44,149.39,24.72]
[1745814641591,4.56295843,149.43,149.39,29.28295843]
[1745814641791,4.56295843,149.44,149.39,29.28295843]
[1745814641992,4.56295843,149.44,149.41,6.6905]
[1745814644288,6.6886,149.46,149.41,4.56295843]
[1745814644488,24.72,149.49,149.43,4.56295843]
[1745814644688,4.56295843,149.48,149.44,4.56295843]
[1745814644890,24.72,149.49,149.45,4.56295843]
[1745814645995,29.28295843,149.49,149.46,6.6882]
[1745814646391,24.72,149.49,149.46,4.56295843]
[1745814646596,4.56295843,149.51,149.46,4.56295843]
[1745814646792,24.74,149.52,149.48,4.56295843]
[1745814646992,1.9202,149.59,149.44,6.0122]
[1745814646993,3.9778,149.59,149.51,4.56295843]
[1745814647192,11.24685843,149.57,149.52,4.56295843]
[1745814647392,4.56295843,149.55,149.51,4.56295843]
[1745814647994,4.56295843,149.55,149.47,24.74]
[1745814648297,4.56295843,149.53,149.49,4.56295843]
[1745814648494,11.24875843,149.53,149.49,4.56295843]
[1745814648697,4.56295843,149.52,149.48,11.25045843]
[1745814648993,11.24915843,149.52,149.47,11.25105843]
[1745814649296,4.56295843,149.51,149.46,4.56295843]
[1745814649603,4.56295843,149.5,149.45,35.99185843]
[1745814649793,4.56295843,149.49,149.45,31.4289]
[1745814649993,4.56295843,149.49,149.45,6.6889]
[1745814651993,4.56295843,149.48,149.44,6.6894]
[1745814652595,4.56295843,149.48,149.44,11.25235843]
[1745814653498,4.56295843,149.48,149.45,6.6889]
[1745814653698,11.25045843,149.49,149.45,6.6889]
[1745814656806,6.6877,149.48,149.45,6.6889]
[1745814657005,6.6877,149.48,149.44,11.25225843]
[1745814657507,11.25065843,149.48,149.44,11.25225843]
[1745814657708,11.25065843,149.48,149.44,6.6893]
[1745814658209,4.56295843,149.48,149.45,6.689]
[1745814659910,4.56295843,149.48,149.44,6.6894]
[1745814660107,4.56295843,149.47,149.42,29.30295843]
[1745814660314,4.56295843,149.45,149.41,4.56295843]
[1745814661112,4.56295843,149.45,149.42,6.6903]
[1745814661313,11.25185843,149.46,149.42,6.6903]
[1745814662211,6.6892,149.45,149.41,11.25365843]
[1745814663311,11.25245843,149.44,149.4,6.6911]
[1745814663512,4.56295843,149.44,149.39,31.10835843]
[1745814663714,4.56295843,149.43,149.39,4.56295843]
[1745814663908,11.25365843,149.42,149.38,11.25505843]
[1745814664113,4.56295843,149.42,149.37,4.56295843]
[1745814664415,4.56295843,149.39,149.34,3.8763]
[1745814664605,4.56295843,149.38,149.33,35.77980995]
[1745814664810,4.56295843,149.38,149.32,32.36421288]
[1745814665013,4.56295843,149.38,149.33,4.56295843]
[1745814665210,4.56295843,149.37,149.33,4.56295843]
[1745814665513,4.56295843,149.37,149.32,36.92717131]
[1745814665714,4.56295843,149.37,149.33,6.6941]
[1745814666316,4.56295843,149.37,149.34,6.6939]
[1745814666517,4.56295843,149.37,149.32,36.92717131]
[1745814666912,11.25565843,149.37,149.33,6.6941]
[1745814668817,4.56295843,149.35,149.32,6.6947]
[1745814669319,11.25645843,149.35,149.32,6.6947]
[1745814669712,4.56295843,149.35,149.3,4.56295843]
[1745814669919,11.25735843,149.34,149.29,4.56295843]
[1745814670114,4.56295843,149.33,149.29,4.56295843]
[1745814670714,11.25765843,149.33,149.29,4.56295843]
[1745814671012,11.25765843,149.33,149.28,4.56295843]
[1745814671013,4.56295843,149.33,149.28,4.56295843]
[1745814671218,11.25745843,149.33,149.29,4.56295843]
[1745814671416,4.56295843,149.33,149.29,4.56295843]
[1745814672219,4.56295843,149.33,149.28,11.25925843]
[1745814672519,6.6953,149.32,149.28,11.25925843]
[1745814673020,6.6953,149.31,149.27,11.25985843]
[1745814673315,11.25825843,149.31,149.27,11.25985843]
[1745814673518,11.25825843,149.31,149.27,6.6969]
[1745814673715,4.56295843,149.31,149.28,6.6966]
[1745814673916,4.56295843,149.31,149.27,4.56295843]
[1745814674420,11.25875843,149.3,149.26,4.56295843]
[1745814674616,29.14295843,149.3,149.25,11.26055843]
[1745814674822,4.56295843,149.28,149.24,11.26125843]
[1745814675424,11.25965843,149.28,149.24,11.26125843]
[1745814677524,6.6967,149.28,149.24,6.6983]
[1745814678126,6.6963,149.29,149.25,6.6979]
[1745814678726,24.58,149.3,149.23,7.14739175]
[1745814679025,24.58,149.3,149.25,7.14739175]
[1745814679326,24.58,149.3,149.28,6.6963]
[1745814679521,24.58,149.33,149.27,7.14739175]
[1745814680027,24.58,149.33,149.31,6.6952]
[1745814680220,6.0486,149.37,149.26,24.58]
[1745814680426,6.0486,149.37,149.32,6.6945]
[1745814680427,35.3135,149.37,149.32,6.6945]
[1745814680926,6.6931,149.36,149.32,6.6945]
[1745814681329,28.6209,149.37,149.3,31.2753]
[1745814681624,28.6209,149.37,149.3,24.58]
[1745814681826,28.6209,149.37,149.31,6.6952]
[1745814682123,6.6932,149.36,149.3,24.58]
[1745814682318,24.58,149.37,149.33,7.14739175]
[1745814682516,6.6917,149.39,149.35,6.6932]
[1745814683427,6.6922,149.38,149.34,6.6938]
[1745814687722,6.6929,149.37,149.31,7.14739175]
[1745814688328,6.6929,149.37,149.33,6.6941]
[1745814688525,31.72739175,149.4,149.31,7.14739175]
[1745814688927,6.6917,149.39,149.31,7.14739175]
[1745814689222,24.58,149.4,149.33,7.14739175]
[1745814689430,24.58,149.4,149.36,6.6927]
[1745814689727,24.5,149.43,149.36,6.6927]
[1745814690226,6.6908,149.41,149.36,6.6927]
[1745814690418,24.5,149.43,149.36,6.6927]
[1745814690620,6.6918,149.39,149.34,26.395]
[1745814690829,7.14739175,149.4,149.31,31.64739175]
[1745814691228,6.6929,149.37,149.32,6.6947]
[1745814691429,7.14739175,149.36,149.3,1.895]
[1745814691629,31.64739175,149.36,149.29,4.0014]
[1745814691831,31.64739175,149.36,149.28,24.5]
[1745814692029,6.6947,149.33,149.28,31.1963]
[1745814692231,31.64739175,149.36,149.28,31.1963]
[1745814692531,7.14739175,149.34,149.25,68.81694327]
[1745814692728,7.14739175,149.32,149.25,61.66955152]
[1745814692931,24.5,149.31,149.25,57.61185152]
[1745814694028,24.5,149.31,149.25,64.75924327]
[1745814694330,24.5,149.31,149.27,6.6968]
[1745814694536,24.5,149.31,149.25,64.75924327]
[1745814695032,24.5,149.31,149.25,33.54239175]
[1745814695233,31.1953,149.31,149.26,6.6974]
[1745814695634,24.5,149.31,149.25,26.395]
[1745814695934,6.6965,149.29,149.24,6.6983]
[1745814696134,6.6965,149.29,149.23,7.14739175]
[1745814696337,7.14739175,149.3,149.23,7.14739175]
[1745814696634,13.84339175,149.3,149.25,6.6977]
[1745814697242,13.84339175,149.3,149.26,6.6974]
[1745814697441,24.5,149.31,149.23,7.14739175]
[1745814697839,6.6951,149.32,149.25,7.14739175]
[1745814698136,7.14739175,149.32,149.23,7.14739175]
[1745814698741,24.5,149.34,149.27,7.14739175]
[1745814698940,31.64739175,149.34,149.26,24.5]
[1745814699242,6.695,149.32,149.25,31.64739175]
[1745814699742,6.695,149.32,149.27,6.697]
[1745814699938,7.14739175,149.32,149.25,31.64739175]
[1745814700142,7.14739175,149.32,149.25,24.5]
[1745814700744,6.6962,149.29,149.25,24.5]
[1745814701042,7.14739175,149.32,149.25,24.5]
[1745814701539,31.64739175,149.34,149.25,31.64739175]
[1745814701741,24.5,149.34,149.27,7.14739175]
[1745814702139,24.5,149.34,149.27,11.11679175]
[1745814702546,31.1943,149.34,149.29,6.6961]
[1745814702745,24.5,149.34,149.29,7.14739175]
[1745814702945,35.69819175,149.38,149.3,24.5]
[1745814703746,6.6932,149.36,149.32,6.6945]
[1745814704347,6.6932,149.36,149.31,6.6951]
[1745814704548,6.6936,149.35,149.31,6.6951]
[1745814704847,35.69819175,149.38,149.3,24.5]
[1745814705145,7.14739175,149.36,149.27,35.61679175]
[1745814705739,35.69819175,149.38,149.31,6.695]
[1745814706151,6.6937,149.35,149.31,6.695]
[1745814706341,35.69819175,149.38,149.3,6.6956]
[1745814706850,35.69819175,149.38,149.29,7.14739175]
[1745814706851,35.69819175,149.38,149.27,35.61679175]
[1745814707042,7.14739175,149.36,149.27,35.61679175]
[1745814707243,6.6947,149.33,149.29,6.6961]
[1745814707547,24.5,149.34,149.27,35.61679175]
[1745814708454,24.5,149.34,149.31,6.6951]
[1745814708649,24.5,149.34,149.27,35.61679175]
[1745814709249,6.6951,149.32,149.27,35.61679175]
[1745814709551,24.5,149.34,149.27,35.61679175]
[1745814709951,31.1941,149.34,149.29,6.6961]
[1745814710151,24.5,149.34,149.29,6.6961]
[1745814711254,31.64739175,149.34,149.27,24.5]
[1745814711555,31.64739175,149.34,149.26,2.0286]
[1745814711755,6.6956,149.31,149.27,6.697]
[1745814712157,6.6949,149.32,149.27,6.697]
[1745814712455,31.64739175,149.34,149.27,6.697]
[1745814712756,6.6949,149.32,149.27,6.697]
[1745814713255,31.64739175,149.34,149.27,6.697]
[1745814713559,7.14739175,149.32,149.24,24.5]
[1745814713853,7.14739175,149.3,149.24,24.5]
[1745814714053,31.64739175,149.3,149.22,3.9431]
[1745814714253,6.6968,149.28,149.23,6.6987]
[1745814716257,6.6972,149.27,149.23,6.6987]
[1745814716455,31.64739175,149.3,149.23,6.6987]
[1745814718257,7.14739175,149.28,149.21,31.1996]
[1745814718658,7.14739175,149.26,149.19,7.14739175]
[1745814718858,6.6982,149.25,149.21,6.6997]
[1745814719159,24.42,149.26,149.21,7.14739175]
[1745814719463,7.14739175,149.27,149.19,7.14739175]
[1745814720363,6.6987,149.24,149.2,6.7002]
[1745814722569,6.6989,149.23,149.2,6.7002]
[1745814723267,6.6989,149.23,149.19,6.7005]
[1745814724065,6.6994,149.22,149.19,6.7005]
[1745814724666,6.7001,149.21,149.17,6.7014]
[1745814725665,6.6994,149.22,149.16,2.0786]
[1745814725862,24.42,149.25,149.19,7.14739175]
[1745814726262,31.118,149.25,149.22,6.6993]
[1745814726568,31.118,149.25,149.19,31.56739175]
[1745814726767,24.42,149.25,149.19,31.56739175]
[1745814726966,7.14739175,149.29,149.19,31.56739175]
[1745814727370,24.42,149.28,149.19,31.56739175]
[1745814727572,6.6972,149.27,149.23,6.6986]
[1745814728071,6.6972,149.27,149.21,7.14739175]
[1745814728773,6.6972,149.27,149.23,6.6986]
[1745814729076,6.6972,149.27,149.21,7.14739175]
[1745814730574,31.1168,149.28,149.24,6.6983]
[1745814731878,24.42,149.28,149.25,6.6979]
[1745814732173,24.42,149.28,149.21,7.14739175]
[1745814732573,31.1167,149.28,149.21,7.14739175]
[1745814733178,6.6972,149.27,149.21,7.14739175]
[1745814734279,6.6972,149.27,149.23,6.6986]
[1745814734582,31.1168,149.28,149.21,7.14739175]
[1745814734783,31.1168,149.28,149.24,6.6982]
[1745814735078,24.42,149.28,149.21,7.14739175]
[1745814735278,24.42,149.28,149.25,6.6979]
[1745814736882,24.42,149.28,149.24,6.6983]
[1745814737082,31.1167,149.28,149.21,7.14739175]
[1745814737380,24.42,149.28,149.21,7.14739175]
[1745814737579,6.6978,149.26,149.22,6.6991]
[1745814737881,7.14739175,149.25,149.16,361.0]
[1745814738078,7.14739175,149.25,149.16,24.42]
[1745814738380,24.42,149.24,149.16,24.42]
[1745814738781,6.6997,149.22,149.17,6.7013]
[1745814738978,24.42,149.24,149.17,6.7013]
[1745814739281,6.6998,149.21,149.17,6.7013]
[1745814740081,6.6992,149.23,149.19,6.7007]
[1745814740377,7.14739175,149.23,149.16,24.42]
[1745814740577,7.14739175,149.21,149.14,1.9388]
[1745814740778,7.14739175,149.19,149.13,24.42]
[1745814741283,6.7013,149.18,149.13,31.123]
[1745814741481,6.7013,149.18,149.13,24.42]
[1745814742180,7.14739175,149.19,149.13,24.42]
[1745814742482,11.14799175,149.24,149.14,7.14739175]
[1745814742779,6.6998,149.21,149.17,6.7012]
[1745814742983,6.6998,149.21,149.14,7.14739175]
[1745814743785,24.42,149.23,149.14,7.14739175]
[1745814744479,6.6993,149.22,149.18,6.7008]
[1745814744784,24.42,149.23,149.17,24.42]
[1745814745684,7.14739175,149.22,149.17,24.42]
[1745814745886,7.14739175,149.22,149.14,31.56739175]
[1745814746188,6.7004,149.2,149.16,6.7017]
[1745814749081,7.14739175,149.22,149.16,6.7017]
[1745814750086,7.14739175,149.22,149.15,6.7022]
[1745814750288,6.7014,149.18,149.12,7.14739175]
[1745814750889,6.7017,149.17,149.11,24.44]
[1745814751088,7.14739175,149.18,149.09,55.65685152]
[1745814751288,6.7033,149.14,149.09,55.65685152]
[1745814751682,7.14739175,149.16,149.09,55.65685152]
[1745814751989,7.14739175,149.14,149.09,55.65685152]
[1745814752185,24.44,149.15,149.09,31.21685152]
[1745814752489,7.14739175,149.14,149.09,31.21685152]
[1745814752783,6.7037,149.13,149.09,37.92155152]
[1745814752989,7.14739175,149.14,149.09,31.21685152]
[1745814753181,28.5211,149.15,149.09,31.21685152]
[1745814753385,24.44,149.17,149.09,38.36424327]
[1745814753588,24.44,149.17,149.11,7.14739175]
[1745814753887,24.44,149.17,149.14,6.7025]
[1745814754082,24.44,149.17,149.11,7.14739175]
[1745814754286,24.44,149.19,149.11,7.14739175]
[1745814754488,24.44,149.19,149.16,6.7019]
[1745814754690,31.58739175,149.23,149.14,24.44]
[1745814754984,6.6998,149.21,149.17,6.7014]
[1745814755188,6.6998,149.21,149.15,7.14739175]
[1745814755589,6.6998,149.21,149.17,6.7013]
[1745814755786,31.58739175,149.23,149.17,6.7013]
[1745814756291,6.7002,149.21,149.17,6.7013]
[1745814756893,6.7002,149.21,149.18,6.701]
[1745814757294,6.7002,149.21,149.15,7.14739175]
[1745814758197,6.7002,149.21,149.17,6.7014]
[1745814758996,6.7003,149.2,149.16,6.7019]
[1745814759495,6.6999,149.21,149.17,6.7016]
[1745814759695,6.6999,149.21,149.15,7.14739175]
[1745814759996,6.6999,149.21,149.17,6.7013]
[1745814760699,6.7003,149.2,149.17,6.7013]
[1745814760993,31.58739175,149.23,149.17,6.7013]
[1745814761795,31.58739175,149.23,149.15,7.14739175]
[1745814762497,6.7006,149.2,149.15,13.84959175]
[1745814763497,6.7006,149.2,149.16,6.702]
[1745814763797,6.6999,149.21,149.15,7.14739175]
[1745814764002,24.44,149.23,149.15,7.14739175]
[1745814764196,6.6996,149.22,149.15,7.14739175]
[1745814764394,24.44,149.23,149.15,7.14739175]
[1745814764591,6.6999,149.21,149.17,6.7015]
[1745814765600,6.7002,149.2,149.17,6.7015]
[1745814765800,24.44,149.23,149.17,6.7015]
[1745814766098,6.6999,149.21,149.18,6.701]
[1745814766398,24.44,149.23,149.18,6.701]
[1745814766602,24.44,149.23,149.15,7.14739175]
[1745814766794,6.6999,149.21,149.17,6.7015]
[1745814767295,31.58739175,149.23,149.14,24.44]
[1745814767494,7.14739175,149.21,149.11,31.58739175]
[1745814767998,3.9058,149.2,149.13,7.14739175]
[1745814768299,24.44,149.19,149.13,7.14739175]
[1745814768501,31.1408,149.19,149.15,6.7022]
[1745814768999,6.7012,149.18,149.14,6.7028]
[1745814769204,24.44,149.19,149.13,7.14739175]
[1745814769596,6.7014,149.18,149.14,6.7027]
[1745814769895,24.44,149.19,149.11,31.58739175]
[1745814770195,24.44,149.19,149.13,7.14739175]
[1745814770797,6.7012,149.18,149.14,6.7026]
[1745814770998,6.7012,149.18,149.13,7.14739175]
[1745814771901,24.44,149.19,149.13,7.14739175]
[1745814772101,24.44,149.19,149.15,7.14739175]
[1745814772502,24.44,149.19,149.16,6.7017]
[1745814772900,6.7006,149.2,149.16,6.7017]
[1745814773404,6.7006,149.2,149.17,6.7015]
[1745814774805,6.7006,149.2,149.16,6.7019]
[1745814775702,6.7006,149.2,149.17,6.7016]
[1745814776802,24.44,149.22,149.18,6.701]
[1745814777005,3.9344,149.25,149.17,7.14739175]
[1745814777202,482.52,149.29,149.21,7.14739175]
[1745814777402,24.5,149.28,149.21,7.14739175]
[1745814777604,24.5,149.28,149.24,7.14739175]
[1745814778106,24.5,149.28,149.25,6.6979]
[1745814778607,24.5,149.28,149.24,7.14739175]
[1745814778806,31.1966,149.28,149.24,13.84569175]
[1745814779009,24.5,149.31,149.24,7.14739175]
[1745814779306,24.5,149.31,149.26,6.6975]
[1745814779603,24.5,149.31,149.24,7.14739175]
[1745814780306,24.5,149.31,149.26,7.14739175]
[1745814781302,6.6962,149.29,149.24,15.86379175]
[1745814782007,6.6962,149.29,149.24,13.84569175]
[1745814782510,24.5,149.31,149.24,7.14739175]
[1745814782702,24.5,149.31,149.26,7.14739175]
[1745814782906,6.6945,149.33,149.29,6.6958]
[1745814783100,24.48,149.34,149.3,7.14739175]
[1745814783808,24.48,149.37,149.3,7.14739175]
[1745814784208,31.1729,149.37,149.33,6.6943]
[1745814784407,24.48,149.37,149.33,6.6943]
[1745814784909,31.1729,149.37,149.32,6.6947]
[1745814785115,24.48,149.37,149.28,24.48]
[1745814785409,6.6932,149.36,149.32,6.6947]
[1745814785609,4.0184,149.4,149.31,7.14739175]
[1745814785811,24.48,149.39,149.31,7.14739175]
[1745814786018,31.1718,149.39,149.34,6.6936]
[1745814786318,24.48,149.39,149.34,6.6936]
[1745814786511,31.1717,149.39,149.35,6.6935]
[1745814786711,31.1717,149.39,149.33,7.14739175]
[1745814787012,6.6922,149.38,149.33,13.84169175]
[1745814787212,31.62739175,149.39,149.32,24.48]
[1745814789111,6.6926,149.37,149.32,24.48]
[1745814789314,31.62739175,149.39,149.29,31.62739175]
[1745814790010,6.693,149.36,149.31,6.6952]
[1745814790713,7.14739175,149.37,149.29,31.62739175]
[1745814790911,7.14739175,149.35,149.27,31.62739175]
[1745814791111,7.14739175,149.33,149.27,24.48]
[1745814791412,7.14739175,149.33,149.25,9.11359175]
[1745814792107,31.62739175,149.35,149.28,6.6962]
[1745814792412,24.48,149.35,149.27,7.14739175]
[1745814793007,6.6944,149.33,149.28,6.6965]
[1745814793211,7.14739175,149.33,149.25,1.9662]
[1745814794114,6.6949,149.32,149.25,1.9662]
[1745814794317,7.14739175,149.33,149.25,1.9662]
[1745814794612,13.84209175,149.33,149.28,6.6963]
[1745814795511,6.695,149.32,149.28,6.6963]
[1745814796314,31.62739175,149.31,149.22,31.62739175]
[1745814796514,24.48,149.3,149.22,31.62739175]
[1745814796816,6.6965,149.29,149.22,31.62739175]
[1745814797814,31.1759,149.3,149.26,6.6975]
[1745814798108,24.48,149.3,149.22,31.62739175]
[1745814798316,24.48,149.3,149.29,6.6962]
[1745814798515,31.1745,149.33,149.29,6.6962]
[1745814799616,6.6949,149.32,149.28,6.6965]
[1745814800113,31.1745,149.33,149.29,6.6957]
[1745814800314,24.48,149.33,149.26,7.14739175]
[1745814801511,31.1744,149.33,149.29,6.696]
[1745814801715,31.62739175,149.33,149.24,7.14739175]
[1745814801918,6.6967,149.28,149.24,6.6981]
[1745814802917,6.6972,149.27,149.24,6.6981]
[1745814803118,6.6972,149.27,149.23,6.6987]
[1745814803718,31.62739175,149.29,149.22,24.48]
[1745814804219,6.6966,149.28,149.24,6.6984]
[1745814804814,6.6966,149.28,149.22,24.48]
[1745814805019,6.6966,149.28,149.25,6.6979]
[1745814805416,38.32369175,149.29,149.26,6.6975]
[1745814805616,31.62739175,149.29,149.26,6.6975]
[1745814805816,31.62739175,149.29,149.22,31.62739175]
[1745814806419,24.48,149.29,149.22,31.62739175]
[1745814806620,24.48,149.29,149.27,6.6967]
[1745814807119,24.48,149.29,149.22,31.62739175]
[1745814807312,6.6972,149.27,149.22,24.48]
[1745814808220,6.6972,149.27,149.24,6.6984]
[1745814808423,7.14739175,149.27,149.22,24.48]
[1745814808617,7.14739175,149.27,149.2,13.18769175]
[1745814808919,7.14739175,149.27,149.2,2.0087]
[1745814809115,7.14739175,149.27,149.19,24.46]
[1745814810226,6.6983,149.25,149.22,6.6991]
[1745814810917,7.14739175,149.25,149.19,24.46]
[1745814811225,7.14739175,149.21,149.14,497.11160463]
[1745814811520,31.60739175,149.21,149.14,32.26421288]
[1745814811721,31.60739175,149.21,149.16,6.7017]
[1745814812222,6.7004,149.2,149.17,6.7016]
[1745814812421,31.60739175,149.21,149.14,39.41160463]
[1745814812422,24.46,149.21,149.14,39.41160463]
[1745814812822,24.46,149.21,149.18,6.7009]
[1745814813021,24.46,149.21,149.14,39.41160463]
[1745814813022,24.46,149.21,149.16,7.14739175]
[1745814813320,24.46,149.21,149.14,39.41160463]
[1745814813516,24.46,149.21,149.14,31.60739175]
[1745814814023,24.46,149.21,149.19,6.7004]
[1745814814518,24.46,149.21,149.18,6.701]
[1745814820422,31.60739175,149.21,149.14,24.46]
[1745814821123,6.701,149.19,149.15,6.7022]
[1745814821819,13.84839175,149.19,149.15,6.7022]
[1745814822026,6.7013,149.18,149.14,6.7028]
[1745814823026,31.60739175,149.17,149.03,93.65055458]
[1745814823227,7.14739175,149.15,149.07,4.0327]
[1745814823529,7.14739175,149.15,149.09,6.7048]
[1745814824527,7.14739175,149.15,149.1,6.7046]
[1745814825130,7.14739175,149.15,149.09,6.705]
[1745814825328,6.7034,149.13,149.07,4.0327]